Cogmind - Beta 16.1 @@@ ROGUE MODE // 2026.03.22 @ 20:28:48 Player: Eggywontgrow Result: Destroyed by H8-R3Z(R) with Subdweller Machine Gun Performance ------------- Evolutions (0) 0 Regions Visited (2) 400 Robots Destroyed (15) 75 Value Destroyed (342) 342 Prototype IDs (0) 0 Alien Tech Used (0) 0 Bonus (0) 0 TOTAL SCORE: 817 Bonus ------- None Cogmind --------- Core Integrity 0/250 Matter 300/300 Energy 200/200 System Corruption 0% Temperature Cool (0) Movement Walking (120) Location -10/Subcaves Parts ------- > --- POWER (1) -------- Subdweller Power Source > --- PROPULSION (2) --- Carbon-fiber Leg Myomer Leg > --- UTILITY (2) ------ Scrap Shield > --- WEAPON (2) ------- Beamcaster Makeshift Axe > --- INVENTORY (5) ---- Subdweller Power Source Aluminum Leg Carbon-fiber Leg Grenade Launcher Scrap Shield Fragment (47) Peak State ------------ > --- POWER ------------ Light Ion Engine > --- PROPULSION ------- Carbon-fiber Leg Myomer Leg > --- UTILITY ---------- Small Storage Unit Improved Terrain Scanner > --- WEAPON ----------- Beamcaster Makeshift Axe > --- INVENTORY -------- Aluminum Leg Aluminum Leg Subdweller Optics Light Armor Plating Scrap Shield Assault Rifle Grenade Launcher [Rating: 25] Favorites ----------- Power Ion Engine Engine Ion Engine Power Core Light Nuclear Core Propulsion Aluminum Leg Leg Aluminum Leg Utility Small Storage Unit Device Sensor Array Storage Small Storage Unit Protection Scrap Shield Weapon Assault Rifle Energy Gun Beamcaster Ballistic Gun Assault Rifle Launcher Grenade Launcher Slashing Weapon Makeshift Axe Build | -11 -10 -10 ------- Run | Yrd Mat Sub Slots Evolved . | . . . Power . | . . . Propulsion . | . . . Utility . | . . . Weapon . | . . . Parts Attached 20 | 8 3 9 Power 4 | 1 1 2 Engine 3 | 1 . 2 Core 1 | . 1 . Reactor . | . . . Propulsion 5 | 2 . 3 Treads . | . . . Leg 5 | 2 . 3 Wheel . | . . . Hover . | . . . Flight . | . . . Utility 4 | 2 1 1 Device 2 | 1 1 . Storage 1 | 1 . . Processor . | . . . Hackware . | . . . Protection 1 | . . 1 Artifact . | . . . Weapon 7 | 3 1 3 Energy Gun 2 | 1 . 1 Energy Cannon . | . . . Ballistic Gun 2 | 2 . . Ballistic Cannon . | . . . Launcher 2 | . 1 1 Special Weapon . | . . . Impact Weapon . | . . . Slashing Weapon 1 | . . 1 Piercing Weapon . | . . . Special Melee Weapon . | . . . Unidentified Prototypes . | . . . Parts Lost 4 | . 1 3 Power 1 | . . 1 Propulsion 1 | . . 1 Utility 1 | . 1 . Weapon 1 | . . 1 Highest Loss Streak 3 | . 1 3 To Critical Strikes . | . . . Average Backups 5 | 1 6 5 Power . | . 1 . Propulsion 1 | . 1 1 Utility 1 | . 2 1 Weapon 1 | . 1 1 Tool/Special . | . . . Unused Backups 7 | . 1 6 Power 1 | . . 1 Propulsion 2 | . . 2 Utility 4 | . 1 3 Weapon . | . . . Tool/Special . | . . . Average Slot Usage (%) 97 | . 99 94 Engine 7 | . 10 5 Core 6 | . 3 8 Leg 27 | . 28 27 Device 11 | . 13 9 Storage 11 | . 14 9 Protection 2 | . . 4 Energy Gun 2 | . . 4 Ballistic Gun 21 | . 27 14 Slashing Weapon 3 | . . 7 Peak Build Rating 25 | 9 11 25 Average Rating 11 | 5 8 16 On Entrance 6 | . 9 11 Avg Prop Armor Cover (%) . | . . . Naked Turns . | . . . Heaviest Build 31 | 15 15 31 Greatest Support 40 | 20 20 40 Greatest Overweight (x) 2 | 2 . . Average Overweight (x) . | . . . Largest Inventory Capacity 8 | 8 8 8 Average Capacity 7 | 7 8 7 Most Carried 8 | 4 8 8 Average Carried 6 | 1 6 6 Final Capacity 8 | 8 8 5 Final Carried 7 | 2 7 5 Class Distribution -------------------- 83% | Mutant 16% | Scavenger-Mutant Dominant Class ---------------- Mutant | -10/Materials Mutant | -10/Subcaves Resources | -11 -10 -10 ----------- Run | Yrd Mat Sub Matter Collected 683 | 224 337 122 Remotely . | . . . Salvage Created 460 | 42 370 48 Parts 33 | 3 26 4 Haulers Intercepted 1 | . 1 . Recyclers Shooed . | . . . Parts Field Recycled . | . . . Retrieved Matter . | . . . Parts Self-Destructed 1 | . . 1 Prevented . | . . . Parts Restored . | . . . Kills | -11 -10 -10 ------- Run | Yrd Mat Sub Combat Hostiles Destroyed 10 | . 9 1 Melee 1 | . . 1 Guns 6 | . 6 . AOE 3 | . 3 . Classes Destroyed 7 | 1 5 1 Worker 1 | . 1 . Builder 1 | . 1 . Tunneler 2 | 2 . . Hauler 1 | . 1 . Swarmer 3 | . 3 . Grunt 6 | . 6 . Subdweller 1 | . . 1 Best Kill Streak 4 | 1 4 1 Combat Bots Only 3 | . 3 1 Max Kills in Single Turn 2 | 1 2 1 Gunslinging . | . . . Exploded 2 | . 2 . Melee 1 | . . 1 Uniques/NPCs Destroyed . | . . . Combat | -11 -10 -10 -------- Run | Yrd Mat Sub Hostile Shots Fired 74 | . 44 30 Missed 22 | . 11 11 Hits 52 | . 33 19 Projectile 52 | . 33 19 Damage Taken 890 | . 458 432 Core 262 | . 67 195 Absorbed by Shields . | . . . Core Remaining (%) 100 | 100 . . Volleys Fired 48 | 11 37 . Largest 2 | 2 2 . Hottest 40 | 40 40 . Shots Fired 92 | 22 70 . Gun 88 | 22 66 . Cannon . | . . . Launcher 4 | . 4 . Special . | . . . Kinetic 88 | 22 66 . Thermal . | . . . Explosive 4 | . 4 . Electromagnetic . | . . . Robot Hit Streak 6 | 2 6 . Robot Miss Streak 4 | 3 4 . Penetration Max . | . . . Secondary Targets 1 | . 1 . Max Gunslinging Chain 1 | . 1 . Shots Hit Robots 56 | 8 41 7 Core Hits 24 | 2 21 1 Critical Kills . | . . . Critical Parts Destroyed 1 | . 1 . Critical Strikes 1 | . 1 . Destroy 1 | . 1 . Melee Attacks 9 | . . 9 Impact . | . . . Slashing 9 | . . 9 Piercing . | . . . Sneak Attacks . | . . . Combat Hostiles . | . . . Follow-up Attacks . | . . . Damage Inflicted 1095 | 108 715 272 Guns 586 | 92 494 . Cannons . | . . . Explosions 183 | . 183 . Melee 272 | . . 272 Ramming 54 | 16 38 . Kinetic 586 | 92 494 . Thermal . | . . . Explosive 183 | . 183 . Electromagnetic . | . . . Impact . | . . . Slashing 272 | . . 272 Piercing . | . . . Highest Corruption . | . . . Average Corruption . | . . . Corruption Purged . | . . . Corruption Blocked . | . . . Overload Shots . | . . . Overflow Damage . | . . . Projectiles . | . . . Explosions . | . . . Melee . | . . . Knockbacks . | . . . Impact . | . . . Kinetic . | . . . Secondary . | . . . Self-Inflicted Damage . | . . . Shots . | . . . Rammed . | . . . Targets Rammed 10 | 4 6 . Kicked 10 | 4 6 . Crushed . | . . . Highest Temperature 2 | . 2 . Average Temperature 1 | . 1 . Received Heat Transfer 273 | . 201 72 Siege Activations . | . . . Martial Activations . | . . . Shielding Activations . | . . . Robots Disrupted . | . . . Combat Hostiles . | . . . Robots Corrupted . | . . . Combat Hostiles . | . . . Parts Fried . | . . . Impact Corruptions . | . . . Robots Melted . | . . . Combat Hostiles . | . . . Parts Melted . | . . . Heat Transferred . | . . . Parts Sabotaged . | . . . Parts Stolen . | . . . Parts Stripped . | . . . Power Chain Reactions . | . . . Alert | -11 -10 -10 ------- Run | Yrd Mat Sub Maximum Alert Level . | . . . Low Security (%) 100 | 100 100 . Level 1 . | . . . Level 2 . | . . . Level 3 . | . . . Level 4 . | . . . Level 5 . | . . . High Security . | . . . Max Security . | . . . Peak Influence 144 | 5 144 . Initial . | . . . Average 50 | . 65 . Influence Increases 286 | 10 276 . Destroy 0b10 Robot/C 180 | . 180 . Destroy 0b10 Robot/NC 25 | 10 15 . Destroy Leader 42 | . 42 . Successful Hack 4 | . 4 . Disable Machine 30 | . 30 . Destroy Structure 5 | . 5 . Influence Decreases 286 | 10 197 79 Entered New Map 39 | . . 39 Time Decay 237 | 10 187 40 Lost Part 10 | . 10 . Squads Dispatched 2 | . 2 . Investigation . | . . . Extermination . | . . . Reinforcement 2 | . 2 . Assault . | . . . Garrison . | . . . Intercept . | . . . Searches Triggered . | . . . Construction Impeded . | . . . Haulers Reinforced . | . . . Active Scanning Responses . | . . . Cargo Convoy Interrupts . | . . . Stealth | -11 -10 -10 --------- Run | Yrd Mat Sub Distress Signals . | . . . Communications Jammed . | . . . Distress Signals . | . . . Times Spotted 26 | . 15 11 Peak Tracking Total 6 | . 3 6 Tactical Retreats . | . . . Traps | -11 -10 -10 ------- Run | Yrd Mat Sub Traps Triggered 1 | . 1 . Indirectly . | . . . Trap Hack Attempts . | . . . Triggered . | . . . Disarmed . | . . . Reprogrammed . | . . . Reused . | . . . Traps Extracted . | . . . Installed . | . . . Triggered . | . . . Machines | -11 -10 -10 ---------- Run | Yrd Mat Sub Machines Disabled 2 | . 2 . Max in Single Turn 1 | . 1 . Machines Repaired . | . . . Machines Dismantled . | . . . Machines Sabotaged . | . . . Overloaded Fab Kills . | . . . Hacking | -11 -10 -10 --------- Run | Yrd Mat Sub Machines Accessed 1 | . 1 . Terminals 1 | . 1 . Fabricators . | . . . Repair Stations . | . . . Recycling Units . | . . . Scanalyzers . | . . . Garrison Access . | . . . Total Hacks 4 | . 4 . Successful 3 | . 3 . Failed 1 | . 1 . Catastrophic . | . . . Database Lockouts . | . . . Manual . | . . . Terminals 4 | . 4 . Fabricators . | . . . Repair Stations . | . . . Recycling Units . | . . . Scanalyzers . | . . . Garrison Access . | . . . Terminal Hacks 3 | . 3 . Record 1 | . 1 . Emergency Access Points 1 | . 1 . Alert Level 1 | . 1 . Fabricator Hacks . | . . . Repair Station Hacks . | . . . Recycling Unit Hacks . | . . . Scanalyzer . | . . . Garrison Access Hacks . | . . . Unauthorized Hacks . | . . . Terminals . | . . . Fabricators . | . . . Repair Stations . | . . . Recycling Units . | . . . Scanalyzers . | . . . Garrison Access . | . . . Data Cores Recovered . | . . . Used . | . . . Hacking Detections . | . . . Full Trace Events . | . . . Feedback Events . | . . . Feedback Blocked . | . . . Robot Schematics Acquired . | . . . Robots Built . | . . . Authchips . | . . . Time . | . . . Total Robot Build Rating . | . . . Part Schematics Acquired . | . . . Parts Built . | . . . Authchips . | . . . Time . | . . . Total Part Build Rating . | . . . Part Studies Acquired . | . . . Parts Repaired . | . . . Time . | . . . Parts Recycled . | . . . Recycled Matter . | . . . Retrieved Matter . | . . . Retrieved Components . | . . . Parts Scanalyzed . | . . . Part Schematics Acquired . | . . . Parts Damaged . | . . . Bothacking | -11 -10 -10 ------------ Run | Yrd Mat Sub Used RIF Installer . | . . . Robots Hacked . | . . . Non-combat . | . . . Combat . | . . . Robot Hacks Applied . | . . . Relay Couplers Released . | . . . Fabnet Peak Effective % . | . . . Robots Rewired . | . . . Allies Hacked . | . . . Hacks Repelled . | . . . Allies | -11 -10 -10 -------- Run | Yrd Mat Sub Total Allies . | . . . Largest Group . | . . . Highest-Rated Group . | . . . Highest-Rated Ally . | . . . Total Orders . | . . . Ally Attacks . | . . . Total Damage . | . . . Kills . | . . . Allies Corrupted . | . . . Allies Melted . | . . . Intel | -11 -10 -10 ------- Run | Yrd Mat Sub Active Infowar (turns) 957 | 21 563 373 Sensors 493 | . 493 . Terrain 464 | 21 70 373 Robot Analysis Total . | . . . Derelict Logs Recovered 1 | . . 1 Drone Launches . | . . . Drone Recoveries . | . . . Exploration | -11 -10 -10 ------------- Run | Yrd Mat Sub Turns Passed 1289 | 168 568 553 Spaces Moved 785 | 97 270 418 Core 4 | 4 . . Treads . | . . . Legs 781 | 93 270 418 Wheels . | . . . Hover . | . . . Flight . | . . . Fastest Speed 50 | 50 120 120 Average Speed 119 | 118 120 120 Slowest Speed 150 | 150 120 120 Overloaded Moves . | . . . Propulsion Burnouts . | . . . Robots Hopped . | . . . Potential Cave-ins . | . . . Cave-ins Triggered . | . . . Exploration Rate (%) 22 | 4 40 22 Regions Visited 2 Branch Regions 1 Pre-discovered Areas 1 | . . 1 Known Exits Taken . | . . . Unknown Exits Taken 2 | 1 1 . Scrap Searched . | . . . Spaces Dug . | . . . Terrain Destroyed 3 | . 3 . Melee . | . . . Projectile . | . . . AOE 3 | . 3 . Terrain Rammed . | . . . Walls Destroyed . | . . . Machines Disabled . | . . . Actions | -11 -10 -10 --------- Run | Yrd Mat Sub Total 1032 | 124 445 463 Wait 123 | . 115 8 Move 783 | 96 269 418 Hop . | . . . Pick Up 20 | 4 8 8 Fast Attach 7 | 5 1 1 Attach 6 | 2 1 3 Detach 1 | . 1 . Swap 10 | 2 3 5 Drop 15 | . 4 11 Fire 48 | 11 37 . Melee 9 | . . 9 Ram . | . . . Kick 10 | 4 6 . Crush . | . . . Escape Stasis . | . . . Rewire . | . . . Trap . | . . . Miscellaneous . | . . . Route ------- -11/Scrapyard -10/Materials -10/Subcaves History --------- Turn | Location | Event 23 | -11/Scrapyard | Discovered new exit (range 16) 169 | -11/Scrapyard | Entered Materials 318 | -10/Materials | Build established: Mutant 733 | -10/Materials | Discovered new exit (range 5) 737 | -10/Materials | Entered Subcaves 738 | -10/Subcaves | Approached by a straggling Scientist 856 | -10/Subcaves | A swath of the cavern ceiling suddenly collapsed 940 | -10/Subcaves | Shifting Twisted Machinery released Mak. Axe 942 | -10/Subcaves | Shifting Twisted Machinery released Sub. Laser 1025 | -10/Subcaves | Ambushed by swarm of Subdwellers 1028 | -10/Subcaves | Ambushed by Subdwellers from Twisted Machinery 1055 | -10/Subcaves | Core integrity fell below 50% 1064 | -10/Subcaves | Core integrity fell below 20% 1080 | -10/Subcaves | Lost 3 allies 1084 | -10/Subcaves | Lost 3 parts (1p1n1w) 1163 | -10/Subcaves | Learned location of Zion (-7) 1207 | -10/Subcaves | A swath of the cavern ceiling suddenly collapsed 1290 | -10/Subcaves | Destroyed by H8-R3Z(R) with Subdweller Machine Gun Last Messages --------------- 01095_ Acquired Carbon-fiber Leg. 01099_ Acquired 20 matter. 01103_ Dropped Aluminum Leg. 01103_ Acquired Carbon-fiber Leg. 01110_ Dropped Imp. Terrain Scanner. 01111_ Dropped Sub. Optics. 01111_ Dropped Lgt. Armor Plating. 01112_ Subatomizers dissect the Sub. Monowheel. 01112_ Dropped Assault Rifle. 01112_ Dropped Sml. Storage Unit. 01114_ Acquired 10 matter. 01116_ Dropped Lgt. Ion Engine. 01117_ Acquired 2 matter. 01121_ Acquired Sub. Power Source. 01123_ Acquired Scrap Shield Fragment. 01132_ Acquired 8 matter. 01137_ Subatomizers dissect the Sub. Monowheel. 01163_ Acquired derelict log, extracted data. World map updated: -7/Zion. A swath of the cavern ceiling suddenly collapses. Map ----- +----------------------------------------------------+ | ?????????????????????????????????????????????????? | | ?????????????????????????????????????????????????? | | ?????????????????????????????????????????????????? | | ?????????????????????????????????????????????????? | | ?????????????????????????????????????????????????? | | ?????????????????????????????????????????????????? | | ?????????????????????????????????????????????????? | | ?????????????????????????????????????????????????? | | ?????????????????????????????????????????????????? | | ?????????????????????????????????????????????????? | | ?????????????????????????????????????????????????? | | ?????????????????????????????????????????????????? | | ??????"??????????????????????????????????????????? | | ?????"???????????????????????????????????????????? | | ???? "???????????????????????????????????????????? | | ??## ????????????????????????????????????????????? | | ?# ??????? ????????????????????????????????????? | | # ???????? #????????????????????????????????????? | | ???????" #????????????????????????????????????? | | ???????#" #????#####???????????????????????????? | | ????????#" ##??## ######??????????????????????? | | #??????###"" #?## ##?????????????????????? | | #?????## ### ##????????????????????? | | #?????# ### ##???????????????????? | | #??????# ## ### #???????????????? | | ######## ### @ %#???????????????? | | ## # ????????? | | R ## ????????? | | ## R ##????????????????? | | ### ## ## %##?????????????????? | | ??## ### # ##??????????????????? | | ???####?# ## #???????????????????? | | ????????# ##### ###?u #???????????????????? | | ????????# #### ##???###??? #???????????????????? | | ????????####??###?????????? ???????????????????? | | ???????????????????????????? ??????????????????? | | ???????????????????????????? ?????????????????? | | ???????????????????????????? ?????????????????? | | ???????????????????????????? ## ?????????????????? | | ?????????????????????????????#???????????????????? | | ?????????????????????????????????????????????????? | | ?????????????????????????????????????????????????? | | ?????????????????????????????????????????????????? | | ?????????????????????????????????????????????????? | | ?????????????????????????????????????????????????? | | ?????????????????????????????????????????????????? | | ?????????????????????????????????????????????????? | | ?????????????????????????????????????????????????? | | ?????????????????????????????????????????????????? | | ?????????????????????????????????????????????????? | +----------------------------------------------------+ Best States ------------- Heat Dissipation 25 Energy Generation 15 Energy Capacity 250 Matter Stores 300 Matter Capacity 300 Sight Range 16 Robot Scan Range 14 Terrain Scan Range 16 Terrain Scan Density 10 Armor Coverage 800 Evasion (%) 55 Item Schematics ----------------- None Robot Schematics ------------------ None Fabricated ------------ Nothing Repaired ---------- Nothing Studied --------- None Alien Tech Used ----------------- None Achievements -------------- None Challenges ------------ None Game ------ Seed EnhancedMultinovaModule Manual? 0 Play Time 00:21:48 Cumulative 23.8 hours Start 2026.03.22 @ 20:08:20 End 2026.03.22 @ 20:28:48 Sessions 1 Manual Loads 0 Difficulty Rogue Special Mode None Game No. 28 Rogue 24 Adventurer 4 Explorer 0 Win Type - Total 1 Types 1/0/0/0/0/0/0/0/0/0 Lore% 8 Gallery% 20 Achievement% 14 Wizard Run 0 Options --------- Layout 0 ASCII 0 Keyboard 1 Movement Numpad Keybinds 1 Fullscreen 2 Font 24/Terminus Map View 38x25 Zoom Use 99% Tactical HUD 1 Map Filters NONE Filters NONE Steam 1 RUN: 121200bc-c8d1-4179-b08b-9dd7d1843d3c